[Event "*** SCC Grand Prix: Titled Tuesday Blitz"]
[Site "Chess.com"]
[Date "2020.07.21"]
[Round "7"]
[White "chigorin28"]
[Black "VALPARAISO37"]
[Result "1-0"]
[WhiteElo "2435"]
[BlackElo "2277"]
[TimeControl "180+1"]
[EndTime "11:17:55 PDT"]
[Termination "chigorin28 won by checkmate"]

1. e4 {[%clk 0:03:00.9]} 1... e5 {[%clk 0:02:58.6]} 2. Bc4 {[%clk 0:02:59.9]}
2... Nf6 {[%clk 0:02:58]} 3. d3 {[%clk 0:02:59.6]} 3... Nc6 {[%clk 0:02:55.4]}
4. Nf3 {[%clk 0:02:59.9]} 4... Bc5 {[%clk 0:02:54.8]} 5. O-O {[%clk 0:02:59.6]}
5... d6 {[%clk 0:02:54.9]} 6. Bb3 {[%clk 0:02:59.2]} 6... a6 {[%clk 0:02:54.3]}
7. c3 {[%clk 0:02:59.6]} 7... Ba7 {[%clk 0:02:52.2]} 8. Re1 {[%clk 0:03:00.1]}
8... h6 {[%clk 0:02:51.2]} 9. d4 {[%clk 0:02:58.8]} 9... O-O {[%clk 0:02:50.9]}
10. h3 {[%clk 0:02:56.6]} 10... Re8 {[%clk 0:02:50.7]} 11. Bc2 {[%clk
0:02:56.4]} 11... Bd7 {[%clk 0:02:44.2]} 12. a4 {[%clk 0:02:47.2]} 12... b5
{[%clk 0:02:38]} 13. Be3 {[%clk 0:02:42.6]} 13... exd4 {[%clk 0:02:36.2]} 14.
cxd4 {[%clk 0:02:38.6]} 14... Nb4 {[%clk 0:02:35.7]} 15. axb5 {[%clk 0:02:36.5]}
15... Nxc2 {[%clk 0:02:33.5]} 16. Qxc2 {[%clk 0:02:36.8]} 16... axb5 {[%clk
0:02:28.6]} 17. Nbd2 {[%clk 0:02:36.8]} 17... Bb6 {[%clk 0:02:22.9]} 18. Rac1
{[%clk 0:02:36.2]} 18... Ra4 {[%clk 0:02:17.8]} 19. b3 {[%clk 0:02:30.7]} 19...
Ra3 {[%clk 0:02:13.3]} 20. d5 {[%clk 0:02:21.1]} 20... Bxe3 {[%clk 0:02:12.5]}
21. Rxe3 {[%clk 0:02:21.5]} 21... Qa8 {[%clk 0:02:06.9]} 22. Qc3 {[%clk
0:02:19]} 22... Rc8 {[%clk 0:02:01.4]} 23. Ree1 {[%clk 0:02:00.7]} 23... c5
{[%clk 0:01:59.7]} 24. dxc6 {[%clk 0:02:00.3]} 24... Rxc6 {[%clk 0:01:59.1]} 25.
Qe3 {[%clk 0:01:58.3]} 25... Ra2 {[%clk 0:01:55.3]} 26. Rxc6 {[%clk 0:01:55.8]}
26... Bxc6 {[%clk 0:01:53.7]} 27. Nd4 {[%clk 0:01:53.9]} 27... Qa5 {[%clk
0:01:30.1]} 28. Nxc6 {[%clk 0:01:39.8]} 28... Qxd2 {[%clk 0:01:28.8]} 29. e5
{[%clk 0:01:35.5]} 29... dxe5 {[%clk 0:01:22.4]} 30. Qxd2 {[%clk 0:01:34.9]}
30... Rxd2 {[%clk 0:01:19.7]} 31. Rxe5 {[%clk 0:01:35.5]} 31... Rc2 {[%clk
0:01:14.9]} 32. Ne7+ {[%clk 0:01:33.2]} 32... Kf8 {[%clk 0:01:13.4]} 33. Nf5
{[%clk 0:01:31]} 33... h5 {[%clk 0:00:33.9]} 34. Rxb5 {[%clk 0:01:30]} 34...
Rc1+ {[%clk 0:00:31.5]} 35. Kh2 {[%clk 0:01:29.9]} 35... g6 {[%clk 0:00:26.1]}
36. Rb8+ {[%clk 0:01:28.2]} 36... Ne8 {[%clk 0:00:25.8]} 37. Nd6 {[%clk
0:01:28.6]} 37... Ke7 {[%clk 0:00:25.2]} 38. Nxe8 {[%clk 0:01:28.2]} 38... Rc2
{[%clk 0:00:25.3]} 39. Kg3 {[%clk 0:01:24.9]} 39... g5 {[%clk 0:00:25.4]} 40.
Kf3 {[%clk 0:01:21.7]} 40... f5 {[%clk 0:00:25]} 41. Ke3 {[%clk 0:01:19.9]}
41... g4 {[%clk 0:00:23.5]} 42. hxg4 {[%clk 0:01:19.7]} 42... fxg4 {[%clk
0:00:23.6]} 43. Ng7 {[%clk 0:01:16.7]} 43... h4 {[%clk 0:00:23.9]} 44. Nf5+
{[%clk 0:01:16.4]} 44... Kf6 {[%clk 0:00:24.6]} 45. Nxh4 {[%clk 0:01:17.3]}
45... Kg5 {[%clk 0:00:25.1]} 46. g3 {[%clk 0:01:17]} 46... Rc3+ {[%clk
0:00:24.3]} 47. Kd2 {[%clk 0:01:16.4]} 47... Rc7 {[%clk 0:00:23.1]} 48. Ng2
{[%clk 0:01:16.2]} 48... Kf6 {[%clk 0:00:22.1]} 49. Ne3 {[%clk 0:01:16]} 49...
Rd7+ {[%clk 0:00:21.3]} 50. Ke2 {[%clk 0:01:15.9]} 50... Re7 {[%clk 0:00:20.7]}
51. Rb5 {[%clk 0:01:15.3]} 51... Re8 {[%clk 0:00:20]} 52. Kf1 {[%clk 0:01:14.7]}
52... Rg8 {[%clk 0:00:19.3]} 53. Rb4 {[%clk 0:01:12.3]} 53... Ke6 {[%clk
0:00:19.6]} 54. Rxg4 {[%clk 0:01:12]} 54... Rb8 {[%clk 0:00:19.1]} 55. b4 {[%clk
0:01:12.4]} 55... Rc8 {[%clk 0:00:19.2]} 56. Rf4 {[%clk 0:01:12.8]} 56... Ke5
{[%clk 0:00:19.1]} 57. Kg2 {[%clk 0:01:13.7]} 57... Rc3 {[%clk 0:00:17.8]} 58.
Kf3 {[%clk 0:01:14.6]} 58... Rb3 {[%clk 0:00:17.9]} 59. Re4+ {[%clk 0:01:15]}
59... Kf6 {[%clk 0:00:17.6]} 60. Rh4 {[%clk 0:01:15.9]} 60... Kg5 {[%clk
0:00:17.7]} 61. Rc4 {[%clk 0:01:15.4]} 61... Rb2 {[%clk 0:00:16.9]} 62. Rc5+
{[%clk 0:01:15.4]} 62... Kg6 {[%clk 0:00:17.2]} 63. b5 {[%clk 0:01:16.2]} 63...
Rb3 {[%clk 0:00:17.1]} 64. g4 {[%clk 0:01:15.6]} 64... Rb4 {[%clk 0:00:16.6]}
65. Kg3 {[%clk 0:01:15.5]} 65... Rb3 {[%clk 0:00:16]} 66. Rc6+ {[%clk
0:01:09.5]} 66... Kh7 {[%clk 0:00:13.5]} 67. b6 {[%clk 0:01:08.4]} 67... Kg7
{[%clk 0:00:13]} 68. g5 {[%clk 0:01:08.5]} 68... Kh7 {[%clk 0:00:12.8]} 69. Kg4
{[%clk 0:01:08.2]} 69... Rd3 {[%clk 0:00:11.8]} 70. Nf5 {[%clk 0:01:07]} 70...
Rb3 {[%clk 0:00:05.9]} 71. g6+ {[%clk 0:01:07.1]} 71... Kg8 {[%clk 0:00:04.1]}
72. Rc8# {[%clk 0:01:08]} 1-0

[Event "*** SCC Grand Prix: Titled Tuesday Blitz"]
[Site "Chess.com"]
[Date "2020.07.21"]
[Round "7"]
[White "OparinGrigoriy"]
[Black "LyonBeast"]
[Result "0-1"]
[WhiteElo "2937"]
[BlackElo "3023"]
[TimeControl "180+1"]
[EndTime "11:17:56 PDT"]
[Termination "LyonBeast won by resignation"]

1. Nf3 {[%clk 0:03:00.9]} 1... d5 {[%clk 0:02:56.9]} 2. g3 {[%clk 0:03:01.2]}
2... Nf6 {[%clk 0:02:56.3]} 3. Bg2 {[%clk 0:03:01.5]} 3... g6 {[%clk 0:02:56.2]}
4. c4 {[%clk 0:03:00.8]} 4... c6 {[%clk 0:02:54.2]} 5. b3 {[%clk 0:03:01.1]}
5... Bg7 {[%clk 0:02:54.4]} 6. Bb2 {[%clk 0:03:01.5]} 6... O-O {[%clk
0:02:55.1]} 7. O-O {[%clk 0:03:02.1]} 7... a5 {[%clk 0:02:55.6]} 8. Nc3 {[%clk
0:03:01.1]} 8... e6 {[%clk 0:02:42]} 9. d4 {[%clk 0:02:47.6]} 9... b6 {[%clk
0:02:42.2]} 10. Rc1 {[%clk 0:02:45.6]} 10... Bb7 {[%clk 0:02:42.1]} 11. e3
{[%clk 0:02:45.6]} 11... Nbd7 {[%clk 0:02:42.3]} 12. Qe2 {[%clk 0:02:46.2]}
12... Re8 {[%clk 0:02:42.8]} 13. Rfd1 {[%clk 0:02:46.3]} 13... Qe7 {[%clk
0:02:29.8]} 14. Ne5 {[%clk 0:02:33.3]} 14... Rec8 {[%clk 0:02:16.5]} 15. cxd5
{[%clk 0:02:18.5]} 15... exd5 {[%clk 0:02:11.7]} 16. f4 {[%clk 0:02:18.8]} 16...
Ne8 {[%clk 0:01:52.9]} 17. Bh3 {[%clk 0:02:17.8]} 17... f5 {[%clk 0:01:52.8]}
18. g4 {[%clk 0:02:15.4]} 18... Nd6 {[%clk 0:01:46.3]} 19. Qg2 {[%clk
0:02:02.5]} 19... Kh8 {[%clk 0:01:24.4]} 20. Rc2 {[%clk 0:01:47.1]} 20... Nf6
{[%clk 0:01:17.6]} 21. Ba3 {[%clk 0:01:39.8]} 21... c5 {[%clk 0:01:17.5]} 22.
Na4 {[%clk 0:01:32.4]} 22... fxg4 {[%clk 0:01:16.9]} 23. Bxg4 {[%clk 0:01:29.6]}
23... Nxg4 {[%clk 0:01:16.9]} 24. Qxg4 {[%clk 0:01:30]} 24... Nf5 {[%clk
0:01:17.3]} 25. Qh3 {[%clk 0:01:26.8]} 25... Bxe5 {[%clk 0:01:09.8]} 26. dxe5
{[%clk 0:01:27.7]} 26... Qe6 {[%clk 0:00:59.6]} 27. Re1 {[%clk 0:01:02]} 27...
Rc6 {[%clk 0:00:55.2]} 28. Rd2 {[%clk 0:00:53.7]} 28... Re8 {[%clk 0:00:42.4]}
29. Bb2 {[%clk 0:00:48.2]} 29... d4 {[%clk 0:00:40]} 30. e4 {[%clk 0:00:43.3]}
30... Ne3 {[%clk 0:00:40.2]} 31. Qxe6 {[%clk 0:00:42.7]} 31... Rcxe6 {[%clk
0:00:39.7]} 32. Rxe3 {[%clk 0:00:09.7]} 32... dxe3 {[%clk 0:00:39.4]} 33. Rd5
{[%clk 0:00:10.6]} 33... g5 {[%clk 0:00:30.2]} 34. f5 {[%clk 0:00:03.6]} 34...
Bxd5 {[%clk 0:00:30.4]} 35. exd5 {[%clk 0:00:02.6]} 35... Rxe5 {[%clk
0:00:30.7]} 36. Kf1 {[%clk 0:00:01.6]} 36... Kg8 {[%clk 0:00:29.2]} 37. Bxe5
{[%clk 0:00:01.9]} 37... Rxe5 {[%clk 0:00:30.1]} 38. Nxb6 {[%clk 0:00:02.3]}
38... Rxf5+ {[%clk 0:00:22.2]} 39. Ke2 {[%clk 0:00:02.8]} 39... Rf2+ {[%clk
0:00:21.2]} 40. Kxe3 {[%clk 0:00:03.3]} 40... Rxa2 {[%clk 0:00:20.5]} 41. Nd7
{[%clk 0:00:01.6]} 41... Rxh2 {[%clk 0:00:18.9]} 42. Nxc5 {[%clk 0:00:02.3]}
42... Kf7 {[%clk 0:00:18.9]} 43. Ke4 {[%clk 0:00:02.8]} 43... g4 {[%clk
0:00:16.7]} 44. d6 {[%clk 0:00:02.3]} 44... Rd2 {[%clk 0:00:16.4]} 45. Ke5
{[%clk 0:00:01.7]} 45... g3 {[%clk 0:00:16.3]} 46. Ne4 {[%clk 0:00:02.6]} 46...
Re2 {[%clk 0:00:16]} 0-1

[Event "*** SCC Grand Prix: Titled Tuesday Blitz"]
[Site "Chess.com"]
[Date "2020.07.21"]
[Round "7"]
[White "marianokar"]
[Black "Shushik"]
[Result "0-1"]
[WhiteElo "2416"]
[BlackElo "2235"]
[TimeControl "180+1"]
[EndTime "11:17:56 PDT"]
[Termination "Shushik won on time"]

1. d4 {[%clk 0:03:00.9]} 1... d5 {[%clk 0:02:59.9]} 2. Nf3 {[%clk 0:03:01]} 2...
Nf6 {[%clk 0:02:59.9]} 3. c4 {[%clk 0:03:01.3]} 3... e6 {[%clk 0:03:00]} 4. g3
{[%clk 0:03:00.7]} 4... dxc4 {[%clk 0:03:00]} 5. Bg2 {[%clk 0:03:00.4]} 5... Nc6
{[%clk 0:03:00.2]} 6. O-O {[%clk 0:02:57]} 6... Rb8 {[%clk 0:02:59.2]} 7. Bg5
{[%clk 0:02:52.9]} 7... h6 {[%clk 0:02:53.8]} 8. Bxf6 {[%clk 0:02:52.7]} 8...
Qxf6 {[%clk 0:02:53.5]} 9. Nc3 {[%clk 0:02:32.4]} 9... Be7 {[%clk 0:02:44.4]}
10. Qa4 {[%clk 0:02:26.6]} 10... O-O {[%clk 0:02:30.1]} 11. Qxc4 {[%clk
0:02:21.3]} 11... Rd8 {[%clk 0:02:21.8]} 12. Rfd1 {[%clk 0:02:09.3]} 12... Bd7
{[%clk 0:02:16.2]} 13. Ne4 {[%clk 0:01:57.2]} 13... Qg6 {[%clk 0:02:11.7]} 14.
Nc5 {[%clk 0:01:51.8]} 14... Bxc5 {[%clk 0:02:01.7]} 15. Qxc5 {[%clk 0:01:50.7]}
15... Be8 {[%clk 0:02:00.1]} 16. e3 {[%clk 0:01:43.2]} 16... Rbc8 {[%clk
0:01:39]} 17. b4 {[%clk 0:01:37]} 17... a6 {[%clk 0:01:37.5]} 18. a4 {[%clk
0:01:34.6]} 18... Rd5 {[%clk 0:01:16.3]} 19. Qc3 {[%clk 0:01:22.9]} 19... f6
{[%clk 0:01:02.1]} 20. Nh4 {[%clk 0:01:16.8]} 20... Qh5 {[%clk 0:00:58.9]} 21.
Bxd5 {[%clk 0:01:08.9]} 21... Qxd5 {[%clk 0:00:58.9]} 22. Qc5 {[%clk 0:01:03.6]}
22... Qe4 {[%clk 0:00:54.9]} 23. b5 {[%clk 0:00:55.5]} 23... axb5 {[%clk
0:00:50.6]} 24. axb5 {[%clk 0:00:56.4]} 24... b6 {[%clk 0:00:47.9]} 25. Qc3
{[%clk 0:00:25.1]} 25... Ne7 {[%clk 0:00:46]} 26. Qd3 {[%clk 0:00:19]} 26... Qg4
{[%clk 0:00:45.5]} 27. f3 {[%clk 0:00:15.5]} 27... Qh3 {[%clk 0:00:42.3]} 28. e4
{[%clk 0:00:11.6]} 28... Rd8 {[%clk 0:00:37.1]} 29. Ng2 {[%clk 0:00:11.2]} 29...
e5 {[%clk 0:00:30.3]} 30. d5 {[%clk 0:00:09.8]} 30... Nc8 {[%clk 0:00:25.1]} 31.
Rac1 {[%clk 0:00:07.7]} 31... Nd6 {[%clk 0:00:24.6]} 32. Rxc7 {[%clk 0:00:07.3]}
32... Bxb5 {[%clk 0:00:24.6]} 33. Qc2 {[%clk 0:00:05.4]} 33... Qh5 {[%clk
0:00:22]} 34. g4 {[%clk 0:00:03.1]} 34... Qh3 {[%clk 0:00:21.4]} 0-1

[Event "*** SCC Grand Prix: Titled Tuesday Blitz"]
[Site "Chess.com"]
[Date "2020.07.21"]
[Round "7"]
[White "jerry_77"]
[Black "SilviusTiberius"]
[Result "0-1"]
[WhiteElo "2368"]
[BlackElo "2507"]
[TimeControl "180+1"]
[EndTime "11:17:58 PDT"]
[Termination "SilviusTiberius won by resignation"]

1. e4 {[%clk 0:03:00.9]} 1... c5 {[%clk 0:02:59.7]} 2. Nf3 {[%clk 0:03:00.7]}
2... Nc6 {[%clk 0:03:00.2]} 3. d4 {[%clk 0:03:01.3]} 3... cxd4 {[%clk
0:03:01.1]} 4. Nxd4 {[%clk 0:03:02.2]} 4... Nf6 {[%clk 0:03:01.5]} 5. Nc3 {[%clk
0:03:02.7]} 5... d6 {[%clk 0:03:02]} 6. Bg5 {[%clk 0:03:01.2]} 6... e6 {[%clk
0:03:02.1]} 7. Qd2 {[%clk 0:03:01.1]} 7... Be7 {[%clk 0:03:02.5]} 8. O-O-O
{[%clk 0:03:00.9]} 8... Nxd4 {[%clk 0:03:02.8]} 9. Qxd4 {[%clk 0:03:00.9]} 9...
O-O {[%clk 0:03:03.5]} 10. f4 {[%clk 0:02:58.5]} 10... Qa5 {[%clk 0:03:03.7]}
11. Kb1 {[%clk 0:02:55.1]} 11... h6 {[%clk 0:02:59.3]} 12. h4 {[%clk 0:02:45]}
12... e5 {[%clk 0:02:58.9]} 13. Qe3 {[%clk 0:02:23.9]} 13... exf4 {[%clk
0:02:57.1]} 14. Bxf4 {[%clk 0:02:23]} 14... Be6 {[%clk 0:02:53.8]} 15. Bd3
{[%clk 0:02:13.2]} 15... Rac8 {[%clk 0:02:49.8]} 16. Qd2 {[%clk 0:02:09.7]}
16... Rxc3 {[%clk 0:01:26.9]} 17. Qxc3 {[%clk 0:02:10.6]} 17... Qxa2+ {[%clk
0:01:27]} 18. Kc1 {[%clk 0:02:08.6]} 18... d5 {[%clk 0:01:27]} 19. e5 {[%clk
0:02:03.2]} 19... Rc8 {[%clk 0:01:18.3]} 20. exf6 {[%clk 0:01:18.3]} 20... Rxc3
{[%clk 0:00:57.6]} 21. fxe7 {[%clk 0:01:18.4]} 21... Rc8 {[%clk 0:00:57.2]} 22.
Kd2 {[%clk 0:01:16.5]} 22... Qa4 {[%clk 0:00:44.9]} 23. Be5 {[%clk 0:01:13.3]}
23... d4 {[%clk 0:00:37.8]} 24. Ra1 {[%clk 0:01:10.6]} 24... Qb4+ {[%clk
0:00:35]} 25. Kc1 {[%clk 0:01:09]} 25... Qxe7 {[%clk 0:00:22.8]} 26. Bxd4 {[%clk
0:01:07.4]} 26... Qd6 {[%clk 0:00:21.4]} 27. Bc3 {[%clk 0:01:07.1]} 27... b5
{[%clk 0:00:18.5]} 28. Rd1 {[%clk 0:01:02.7]} 28... Qf4+ {[%clk 0:00:16.1]} 29.
Bd2 {[%clk 0:01:02.8]} 29... Qxh4 {[%clk 0:00:15.9]} 30. Rxa7 {[%clk 0:01:00.4]}
30... b4 {[%clk 0:00:14.1]} 31. Kb1 {[%clk 0:00:59.6]} 31... b3 {[%clk
0:00:13.9]} 32. cxb3 {[%clk 0:00:56]} 32... Qf2 {[%clk 0:00:11]} 33. Bc3 {[%clk
0:00:52.1]} 33... Qxa7 {[%clk 0:00:10.3]} 34. g4 {[%clk 0:00:51]} 34... Qf2
{[%clk 0:00:10.3]} 35. g5 {[%clk 0:00:49.9]} 35... Bxb3 {[%clk 0:00:10.1]} 36.
Re1 {[%clk 0:00:39.6]} 36... hxg5 {[%clk 0:00:08.5]} 37. Rh1 {[%clk 0:00:33.8]}
37... g4 {[%clk 0:00:07.3]} 38. Bh7+ {[%clk 0:00:30.1]} 38... Kf8 {[%clk
0:00:07.1]} 39. Bb4+ {[%clk 0:00:30]} 39... Ke8 {[%clk 0:00:07.6]} 40. Re1+
{[%clk 0:00:30]} 40... Kd8 {[%clk 0:00:05.4]} 41. Ba5+ {[%clk 0:00:28.6]} 41...
Kd7 {[%clk 0:00:05.4]} 42. Be4 {[%clk 0:00:20.5]} 42... Bc2+ {[%clk 0:00:05.1]}
43. Ka1 {[%clk 0:00:19.1]} 43... Bxe4 {[%clk 0:00:03.8]} 44. Rxe4 {[%clk
0:00:20]} 44... Ra8 {[%clk 0:00:03.5]} 45. b4 {[%clk 0:00:20.4]} 45... Qf1+
{[%clk 0:00:02.2]} 46. Kb2 {[%clk 0:00:20.9]} 46... Qg2+ {[%clk 0:00:01.9]} 47.
Re2 {[%clk 0:00:21.3]} 47... Qxe2+ {[%clk 0:00:02.3]} 48. Kb3 {[%clk 0:00:21.5]}
48... Rxa5 {[%clk 0:00:03.2]} 49. bxa5 {[%clk 0:00:21.7]} 49... g3 {[%clk
0:00:04.1]} 50. Kb4 {[%clk 0:00:22.2]} 50... g2 {[%clk 0:00:05]} 51. a6 {[%clk
0:00:23.1]} 51... g1=Q {[%clk 0:00:05.2]} 52. a7 {[%clk 0:00:24]} 52... Qb6+
{[%clk 0:00:05]} 0-1

[Event "*** SCC Grand Prix: Titled Tuesday Blitz"]
[Site "Chess.com"]
[Date "2020.07.21"]
[Round "7"]
[White "HouseOfDurin"]
[Black "reutik"]
[Result "1/2-1/2"]
[WhiteElo "2072"]
[BlackElo "2313"]
[TimeControl "180+1"]
[EndTime "11:17:58 PDT"]
[Termination "Game drawn by agreement"]

1. d4 {[%clk 0:03:00.9]} 1... d5 {[%clk 0:02:59.6]} 2. Bg5 {[%clk 0:03:01.3]}
2... h6 {[%clk 0:02:58.2]} 3. Bh4 {[%clk 0:03:01.3]} 3... c5 {[%clk 0:02:57.6]}
4. c3 {[%clk 0:03:00.5]} 4... Qb6 {[%clk 0:02:56.8]} 5. Qc2 {[%clk 0:02:59.7]}
5... Nc6 {[%clk 0:02:55.2]} 6. e3 {[%clk 0:02:57.7]} 6... Bd7 {[%clk 0:02:43.8]}
7. dxc5 {[%clk 0:02:56.4]} 7... Qxc5 {[%clk 0:02:43.7]} 8. Nd2 {[%clk
0:02:55.4]} 8... Rc8 {[%clk 0:02:41.8]} 9. Ngf3 {[%clk 0:02:43.5]} 9... g5
{[%clk 0:02:40.7]} 10. Bg3 {[%clk 0:02:42.2]} 10... Bg7 {[%clk 0:02:41.1]} 11.
Nb3 {[%clk 0:02:19]} 11... Qb6 {[%clk 0:02:40.7]} 12. Qd2 {[%clk 0:02:08.6]}
12... Nf6 {[%clk 0:02:28.8]} 13. Bd3 {[%clk 0:02:04.1]} 13... Ne4 {[%clk
0:02:14.3]} 14. Bxe4 {[%clk 0:02:03.5]} 14... dxe4 {[%clk 0:02:14.3]} 15. Nfd4
{[%clk 0:02:03.8]} 15... Ne5 {[%clk 0:02:09.5]} 16. Bxe5 {[%clk 0:02:02.2]}
16... Bxe5 {[%clk 0:02:09.3]} 17. O-O {[%clk 0:02:00.9]} 17... Bb8 {[%clk
0:01:58.7]} 18. Rad1 {[%clk 0:01:56.5]} 18... Qc7 {[%clk 0:01:57.3]} 19. g3
{[%clk 0:01:35.7]} 19... Bh3 {[%clk 0:01:53.3]} 20. Rfe1 {[%clk 0:01:32.2]}
20... O-O {[%clk 0:01:51.4]} 21. f4 {[%clk 0:01:25.9]} 21... exf3 {[%clk
0:01:48.2]} 22. Nxf3 {[%clk 0:01:25.4]} 22... Rfd8 {[%clk 0:01:30.7]} 23. Qf2
{[%clk 0:01:24.9]} 23... Rxd1 {[%clk 0:01:29.3]} 24. Rxd1 {[%clk 0:01:25.8]}
24... Rd8 {[%clk 0:01:28.7]} 25. Rxd8+ {[%clk 0:01:14.7]} 25... Qxd8 {[%clk
0:01:29]} 26. Qd2 {[%clk 0:01:02.8]} 26... Qxd2 {[%clk 0:01:25]} 27. Nbxd2
{[%clk 0:01:00.2]} 27... e5 {[%clk 0:01:13.5]} 28. e4 {[%clk 0:00:57.7]} 28...
f6 {[%clk 0:01:07.6]} 29. Kf2 {[%clk 0:00:56]} 29... Kf7 {[%clk 0:01:07.2]} 30.
Nf1 {[%clk 0:00:37.6]} 30... Bc7 {[%clk 0:01:03.6]} 31. Ne3 {[%clk 0:00:36.6]}
31... Bb6 {[%clk 0:01:03.9]} 32. Ke2 {[%clk 0:00:37.1]} 32... Be6 {[%clk
0:01:02.7]} 33. b3 {[%clk 0:00:34.7]} 33... h5 {[%clk 0:00:55.1]} 34. c4 {[%clk
0:00:34.1]} 34... a5 {[%clk 0:00:48.9]} 35. Nd5 {[%clk 0:00:33.2]} 35... Bc5
{[%clk 0:00:49]} 36. h4 {[%clk 0:00:27.1]} 36... Bg4 {[%clk 0:00:41.7]} 37. Ne3
{[%clk 0:00:25.5]} 37... Bxf3+ {[%clk 0:00:20.3]} 38. Kxf3 {[%clk 0:00:25]}
38... Bxe3 {[%clk 0:00:17.7]} 39. Kxe3 {[%clk 0:00:24.9]} 39... b6 {[%clk
0:00:17.6]} 40. a3 {[%clk 0:00:24.4]} 40... Ke6 {[%clk 0:00:16.5]} 41. b4 {[%clk
0:00:23.7]} 41... gxh4 {[%clk 0:00:15.7]} 42. gxh4 {[%clk 0:00:23.1]} 42... axb4
{[%clk 0:00:16]} 43. axb4 {[%clk 0:00:22.7]} 43... Kd6 {[%clk 0:00:16.5]} 44.
Kd3 {[%clk 0:00:20.7]} 44... Ke6 {[%clk 0:00:16.9]} 45. Ke3 {[%clk 0:00:20.4]}
45... f5 {[%clk 0:00:16.1]} 46. exf5+ {[%clk 0:00:20.3]} 46... Kxf5 {[%clk
0:00:16.7]} 47. c5 {[%clk 0:00:20.8]} 47... bxc5 {[%clk 0:00:16.6]} 48. bxc5
{[%clk 0:00:21.6]} 48... Kf6 {[%clk 0:00:15.7]} 49. Ke4 {[%clk 0:00:22]} 49...
Ke6 {[%clk 0:00:16.2]} 50. c6 {[%clk 0:00:21.7]} 50... Kd6 {[%clk 0:00:16.8]}
51. c7 {[%clk 0:00:22.1]} 51... Kxc7 {[%clk 0:00:17.2]} 52. Kxe5 {[%clk
0:00:22.9]} 52... Kd7 {[%clk 0:00:17.7]} 53. Kf5 {[%clk 0:00:23.5]} 53... Ke8
{[%clk 0:00:18.2]} 54. Kg5 {[%clk 0:00:24.4]} 54... Kf7 {[%clk 0:00:18.8]} 55.
Kxh5 {[%clk 0:00:25.3]} 55... Kg7 {[%clk 0:00:19.3]} 1/2-1/2

[Event "*** SCC Grand Prix: Titled Tuesday Blitz"]
[Site "Chess.com"]
[Date "2020.07.21"]
[Round "7"]
[White "DenisQ"]
[Black "Andreikka"]
[Result "0-1"]
[WhiteElo "2628"]
[BlackElo "2889"]
[TimeControl "180+1"]
[EndTime "11:17:59 PDT"]
[Termination "Andreikka won on time"]

1. Nf3 {[%clk 0:03:00.9]} 1... Nc6 {[%clk 0:02:58.3]} 2. d4 {[%clk 0:03:00]}
2... d5 {[%clk 0:02:58.2]} 3. Bf4 {[%clk 0:02:59]} 3... Bf5 {[%clk 0:02:55.1]}
4. Nbd2 {[%clk 0:02:55.4]} 4... e6 {[%clk 0:02:51.9]} 5. e3 {[%clk 0:02:46.9]}
5... Nb4 {[%clk 0:02:51.4]} 6. Bb5+ {[%clk 0:02:44.9]} 6... c6 {[%clk
0:02:51.2]} 7. Ba4 {[%clk 0:02:45.5]} 7... Nf6 {[%clk 0:02:46.8]} 8. a3 {[%clk
0:02:43.1]} 8... Na6 {[%clk 0:02:47.1]} 9. O-O {[%clk 0:02:35.1]} 9... Be7
{[%clk 0:02:46.4]} 10. h3 {[%clk 0:02:31.3]} 10... O-O {[%clk 0:02:45.9]} 11.
Nh4 {[%clk 0:02:27.4]} 11... Nc7 {[%clk 0:02:33.1]} 12. Nxf5 {[%clk 0:02:26.2]}
12... exf5 {[%clk 0:02:34]} 13. c3 {[%clk 0:02:17.7]} 13... Ne6 {[%clk
0:02:32.9]} 14. Bc2 {[%clk 0:02:16.4]} 14... Nxf4 {[%clk 0:02:29.6]} 15. exf4
{[%clk 0:02:17.3]} 15... g6 {[%clk 0:02:29.7]} 16. Re1 {[%clk 0:02:16]} 16...
Bd6 {[%clk 0:02:28.6]} 17. g3 {[%clk 0:02:14.4]} 17... Kg7 {[%clk 0:02:29.3]}
18. Nf3 {[%clk 0:02:11.2]} 18... Qb6 {[%clk 0:02:28.9]} 19. Rb1 {[%clk
0:02:09.2]} 19... Rfe8 {[%clk 0:02:27.7]} 20. Ne5 {[%clk 0:02:04.6]} 20... c5
{[%clk 0:02:14.5]} 21. dxc5 {[%clk 0:02:00.2]} 21... Bxc5 {[%clk 0:02:07.7]} 22.
Nd3 {[%clk 0:01:59.1]} 22... Rxe1+ {[%clk 0:02:06.3]} 23. Qxe1 {[%clk
0:01:58.1]} 23... Re8 {[%clk 0:02:06.8]} 24. Qf1 {[%clk 0:01:56.9]} 24... Bd6
{[%clk 0:02:06.4]} 25. Re1 {[%clk 0:01:27.6]} 25... Rc8 {[%clk 0:01:55.8]} 26.
Re2 {[%clk 0:01:21.2]} 26... Ne4 {[%clk 0:01:53.4]} 27. Kg2 {[%clk 0:01:20.8]}
27... d4 {[%clk 0:01:53.9]} 28. cxd4 {[%clk 0:01:20.3]} 28... Qxd4 {[%clk
0:01:54.8]} 29. Qd1 {[%clk 0:00:58.6]} 29... Qb6 {[%clk 0:01:45.5]} 30. Bb1
{[%clk 0:00:52.6]} 30... h5 {[%clk 0:01:28.2]} 31. h4 {[%clk 0:00:49.9]} 31...
Rd8 {[%clk 0:01:24.1]} 32. Qe1 {[%clk 0:00:47.8]} 32... Qd4 {[%clk 0:01:20.7]}
33. Qa5 {[%clk 0:00:36.9]} 33... Rc8 {[%clk 0:01:14.6]} 34. Qb5 {[%clk
0:00:27.9]} 34... Rc7 {[%clk 0:01:05.8]} 35. Ba2 {[%clk 0:00:27.1]} 35... Bc5
{[%clk 0:00:53.2]} 36. Nxc5 {[%clk 0:00:24.7]} 36... Nxc5 {[%clk 0:00:54.1]} 37.
Qc4 {[%clk 0:00:19.9]} 37... Qxc4 {[%clk 0:00:49.7]} 38. Bxc4 {[%clk 0:00:20.8]}
38... Ne4 {[%clk 0:00:50.6]} 39. Bd5 {[%clk 0:00:20.8]} 39... Nd6 {[%clk
0:00:50]} 40. Rd2 {[%clk 0:00:19.8]} 40... Kf6 {[%clk 0:00:49.9]} 41. Kf3 {[%clk
0:00:19.4]} 41... Ke7 {[%clk 0:00:45.8]} 42. Ke3 {[%clk 0:00:19.2]} 42... b6
{[%clk 0:00:45]} 43. Kd4 {[%clk 0:00:19]} 43... Rc5 {[%clk 0:00:44.2]} 44. Re2+
{[%clk 0:00:12.5]} 44... Kd7 {[%clk 0:00:43.9]} 45. Bb3 {[%clk 0:00:11.5]} 45...
a5 {[%clk 0:00:40.9]} 46. a4 {[%clk 0:00:09.5]} 46... Rc7 {[%clk 0:00:36]} 47.
Bd5 {[%clk 0:00:07.2]} 47... Rc1 {[%clk 0:00:35.2]} 48. Ke5 {[%clk 0:00:06.2]}
48... Ke7 {[%clk 0:00:34.4]} 49. Kd4+ {[%clk 0:00:06.3]} 49... Kf6 {[%clk
0:00:34.9]} 50. Rd2 {[%clk 0:00:03.7]} 50... Ra1 {[%clk 0:00:31.9]} 51. Bb3
{[%clk 0:00:03.5]} 51... Ne4 {[%clk 0:00:31.9]} 52. Rc2 {[%clk 0:00:02.7]} 52...
Nc5 {[%clk 0:00:32.3]} 0-1